fUST/lending_fUST_20240203
["ID","MTS","AMOUNT","RATE_DAILY","PERIOD"]
[313210709,1706953840100,-500.0,0.00027397,2]
[313210710,1706953840109,-500.0,0.00027397,2]
[313210711,1706953840118,-1706.69,0.00027397,2]
[313210712,1706953840127,-150.247468,0.00027397,2]
[313210713,1706953840137,-306.9082875,0.00027397,2]
[313210714,1706953840146,-153.0,0.00027397,2]
[313210715,1706953840156,-18543.54304821,0.000275,2]
[313210716,1706953840165,-600.0,0.000275,2]
[313210717,1706953840176,-5846.53099538,0.00027667,2]
[313210718,1706953840185,-399.31273854,0.00027668,2]
[313210719,1706953840195,-426.45204754,0.00027669,2]
[313210721,1706953840204,-2601.64153275,0.00027669,2]
[313210724,1706953840212,-3889.47108322,0.00027669,2]
[313210726,1706953840222,-9621.48391638,0.00027669,2]
[313210727,1706953840231,-1857.66500198,0.0002767,2]
[313210728,1706953840240,-379.00530314,0.0002767,7]
[313210729,1706953840249,-500.0,0.00027671,2]
[313210730,1706953840259,-500.0,0.00027671,2]
[313210731,1706953840268,-500.0,0.00027671,2]
[313210732,1706953840277,-500.0,0.00027671,2]
[313210733,1706953840287,-500.0,0.00027671,2]
[313210734,1706953840296,-500.0,0.00027671,2]
[313210735,1706953840306,-500.0,0.00027671,2]
[313210736,1706953840315,-151.0,0.00027671,2]
[313210737,1706953840324,-500.0,0.00027671,2]
[313210738,1706953840334,-500.0,0.00027671,2]
[313210739,1706953840346,-432.16430821,0.00027671,2]
[313210740,1706953840355,-500.0,0.00027671,2]
[313210741,1706953840365,-509.03407911,0.00027671,2]
[313210743,1706953840374,-500.0,0.00027671,2]
[313210744,1706953840383,-151.0,0.00027671,2]
[313210745,1706953840393,-500.0,0.00027671,2]
[313210746,1706953840401,-151.0,0.00027671,2]
[313210747,1706953840410,-500.0,0.00027671,2]
[313210748,1706953840421,-500.0,0.00027671,2]
[313210749,1706953840431,-500.0,0.00027671,2]
[313210750,1706953840440,-500.0,0.00027671,2]
[313210751,1706953840449,-151.0,0.00027671,2]
[313210752,1706953840458,-151.0,0.00027671,2]
[313210753,1706953840469,-175.0,0.00027671,2]
[313210754,1706953840478,-500.0,0.00027671,2]
[313210755,1706953840487,-175.0,0.00027671,2]
[313210756,1706953840496,-500.0,0.00027671,2]
[313210757,1706953840506,-151.0,0.00027671,2]
[313210758,1706953840515,-151.0,0.00027671,2]
[313210759,1706953840524,-151.457837,0.00027671,2]
[313210760,1706953840533,-500.0,0.00027671,2]
[313210761,1706953840543,-500.0,0.00027671,2]
[313210762,1706953840552,-500.0,0.00027671,2]
[313210763,1706953840561,-3367.21,0.00027671,2]
[313210764,1706953840571,-500.0,0.00027671,2]
[313210765,1706953840580,-500.0,0.00027671,2]
[313210766,1706953840590,-731.54,0.00027671,2]
[313210767,1706953840600,-500.0,0.00027671,2]
[313210768,1706953840610,-500.0,0.00027671,2]
[313210769,1706953840619,-509.96,0.00027671,2]
[313210770,1706953840629,-750.21,0.00027671,2]
[313210771,1706953840638,-500.0,0.00027671,2]
[313210772,1706953840647,-500.0,0.00027671,2]
[313210773,1706953840657,-500.0,0.00027671,2]
[313210774,1706953840667,-151.0,0.00027671,2]
[313210775,1706953840678,-151.0,0.00027671,2]
[313210776,1706953840687,-500.0,0.00027671,2]
[313210777,1706953840696,-235.852646,0.00027671,2]
[313210778,1706953840705,-500.0,0.00027671,2]
[313210779,1706953840714,-500.0,0.00027671,2]
[313210780,1706953840723,-660.67,0.00027671,2]
[313210781,1706953840732,-500.0,0.00027671,2]
[313210782,1706953840742,-500.0,0.00027671,2]
[313210783,1706953840751,-1243.64,0.00027671,2]
[313210784,1706953840760,-500.0,0.00027671,2]
[313210785,1706953840770,-500.0,0.00027671,2]
[313210786,1706953840780,-500.0,0.00027671,2]
[313210787,1706953840789,-500.0,0.00027671,2]
[313210788,1706953840799,-500.0,0.00027671,2]
[313210789,1706953840808,-500.0,0.00027671,2]
[313210790,1706953840818,-500.0,0.00027671,2]
[313210791,1706953840828,-1334.23,0.00027671,2]
[313210792,1706953840838,-500.0,0.00027671,2]
[313210793,1706953840847,-500.0,0.00027671,2]
[313210794,1706953840857,-500.0,0.00027671,2]
[313210795,1706953840866,-1748.92,0.00027671,2]
[313210796,1706953840875,-500.0,0.00027671,2]
[313210797,1706953840885,-500.0,0.00027671,2]
[313210798,1706953840896,-637.88884278,0.00027671,2]
[313210799,1706953840905,-500.0,0.00027671,2]
[313210800,1706953840915,-500.0,0.00027671,2]
[313210801,1706953840925,-1706.69,0.00027671,2]
[313210802,1706953840934,-670.51356242,0.00027687,2]
[313210803,1706953840944,-3000.0,0.000277,4]
[313210804,1706953840953,-151.0,0.000277,2]
[313210805,1706953840963,-175.0,0.000277,2]
[313210806,1706953840972,-175.0,0.000277,2]
[313210807,1706953840981,-2000.0,0.000277,2]
[313210808,1706953840991,-2000.0,0.0002771,2]
[313210809,1706953841000,-151.0,0.0002772,2]
[313210810,1706953841009,-2000.0,0.0002772,2]
[313210811,1706953841018,-2875.864551,0.0002773,2]
[313210812,1706953841027,-500.0,0.00027767,7]
[313210814,1706953841036,-500.0,0.00027767,7]
[313210815,1706953841046,-500.0,0.00027767,7]
[313210816,1706953841055,-500.0,0.00027767,7]
[313210817,1706953841065,-500.0,0.00027767,7]
[313210818,1706953841074,-500.0,0.00027767,7]
[313210819,1706953841084,-630.42,0.00027767,7]
[313210820,1706953841094,-151.0,0.00027767,2]
[313210822,1706953841103,-151.001804,0.00027767,2]
[313210824,1706953841113,-26672.88718647,0.00027787,2]
[313210826,1706953841122,-35936.46119855,0.000279,2]
[313210828,1706953841131,-151.0,0.000279,2]
[313210830,1706953841141,-151.0,0.000279,2]
[313210831,1706953841152,-175.0,0.000279,2]
[313210833,1706953841162,-175.0,0.000279,2]
[313210835,1706953841171,-151.0,0.000279,2]
[313210837,1706953841183,-437.02503165,0.000279,2]
[313210839,1706953841192,-151.0,0.000279,2]
[313210840,1706953841201,-500.0,0.00027945,2]
[313210842,1706953841210,-500.0,0.00027945,2]
[313210843,1706953841219,-500.0,0.00027945,2]
[313210845,1706953841229,-515.99079095,0.00027945,2]
[313210846,1706953841239,-500.0,0.00027945,2]
[313210847,1706953841248,-500.0,0.00027945,2]
[313210848,1706953841258,-500.0,0.00027945,2]
[313210849,1706953841267,-500.0,0.00027945,2]
[313210851,1706953841276,-500.0,0.00027945,2]
[313210852,1706953841286,-500.0,0.00027945,2]
[313210853,1706953841296,-500.0,0.00027945,2]
[313210854,1706953841305,-500.0,0.00027945,2]
[313210855,1706953841315,-500.0,0.00027945,2]
[313210856,1706953841325,-500.0,0.00027945,2]
[313210858,1706953841335,-500.0,0.00027945,2]
[313210860,1706953841352,-500.0,0.00027945,2]
[313210861,1706953841361,-500.0,0.00027945,2]
[313210862,1706953841371,-3367.21,0.00027945,2]
[313210863,1706953841380,-500.0,0.00027945,2]
[313210865,1706953841391,-500.0,0.00027945,2]
[313210867,1706953841402,-731.54,0.00027945,2]
[313210868,1706953841411,-500.0,0.00027945,2]
[313210869,1706953841421,-509.96,0.00027945,2]
[313210870,1706953841431,-750.21,0.00027945,2]
[313210871,1706953841442,-500.0,0.00027945,2]
[313210872,1706953841452,-500.0,0.00027945,2]
[313210873,1706953841462,-500.0,0.00027945,2]
[313210874,1706953841472,-500.0,0.00027945,2]
[313210875,1706953841481,-500.0,0.00027945,2]
[313210876,1706953841491,-500.0,0.00027945,2]
[313210877,1706953841501,-660.67,0.00027945,2]
[313210878,1706953841511,-500.0,0.00027945,2]
[313210879,1706953841520,-1243.64,0.00027945,2]
[313210880,1706953841529,-500.0,0.00027945,2]
[313210881,1706953841539,-500.0,0.00027945,2]
[313210882,1706953841548,-500.0,0.00027945,2]
[313210883,1706953841557,-500.0,0.00027945,2]
[313210884,1706953841567,-500.0,0.00027945,2]
[313210885,1706953841668,-500.0,0.00027945,2]
[313210886,1706953841678,-1334.23,0.00027945,2]
[313210887,1706953841687,-282.39,0.00027945,2]
[313210888,1706953841697,-500.0,0.00027945,2]
[313210889,1706953841706,-500.0,0.00027945,2]
[313210890,1706953841715,-1748.92,0.00027945,2]
[313210891,1706953841724,-500.0,0.00027945,2]
[313210892,1706953841734,-500.0,0.00027945,2]
[313210893,1706953841743,-500.0,0.00027945,2]
[313210894,1706953841752,-299.73002939,0.00027945,2]
[313210895,1706953841762,-1706.69,0.00027945,2]
[313210896,1706953841771,-175.0,0.00027996,2]
[313210897,1706953841780,-175.0,0.00027996,2]
[313210898,1706953841789,-151.0,0.00027996,2]
[313210899,1706953841798,-151.0,0.00027996,2]
[313210900,1706953841807,-500.0,0.00027999,2]
[313210901,1706953841817,-500.0,0.00027999,2]
[313210902,1706953841826,-500.0,0.00027999,2]
[313210903,1706953841835,-177.05054153,0.00027999,2]
[313210904,1706953841844,-250.0,0.00027999,2]
[313210905,1706953841853,-231.14549736,0.00027999,2]
[313210906,1706953841863,-500.0,0.00027999,2]
[313210907,1706953841872,-500.0,0.00027999,2]
[313210908,1706953841881,-464.26228076,0.00027999,2]
[313210909,1706953841891,-500.0,0.00027999,2]
[313210910,1706953841902,-250.0,0.00027999,2]
[313210911,1706953841912,-500.0,0.00027999,2]
[313210912,1706953841921,-500.0,0.00027999,2]
[313210913,1706953841931,-500.0,0.00027999,2]
[313210914,1706953841940,-500.0,0.00027999,2]
[313210915,1706953841950,-500.0,0.00027999,2]
[313210916,1706953841959,-491.0192481,0.00027999,2]
[313210917,1706953841968,-259.0506465,0.00028,3]
[313210918,1706953841977,-51099.57217898,0.00028,2]
[313210919,1706953841986,-64929.49941037,0.00028,2]
[313210920,1706953841995,-1922.56103292,0.00028,2]
[313210921,1706953842004,-1381.5688834,0.00028,2]
[313210922,1706953842013,-459.92906339,0.00028,3]
[313210923,1706953842022,-225.583434,0.00028,7]
[313210924,1706953842031,-600.0,0.00028,2]
[313210925,1706953842040,-175.0,0.00028,2]
[313210926,1706953842050,-175.0,0.00028,2]
[313210927,1706953842059,-175.0,0.00028,2]
[313210928,1706953842068,-175.0,0.00028,2]
[313210929,1706953842077,-151.0,0.00028,2]
[313210930,1706953842086,-151.0,0.00028,2]
[313210931,1706953842095,-151.0,0.00028,2]
[313210932,1706953842104,-151.0,0.00028,2]
[313210933,1706953842113,-446.46887985,0.00028,2]
[313210934,1706953842122,-500.0,0.00028219,2]
[313210935,1706953842131,-500.0,0.00028219,2]
[313210936,1706953842141,-500.0,0.00028219,2]
[313210937,1706953842151,-500.0,0.00028219,2]
[313210938,1706953842161,-500.0,0.00028219,2]
[313210939,1706953842170,-463.55643008,0.00028219,2]
[313210940,1706953842180,-500.0,0.00028219,2]
[313210941,1706953842190,-500.0,0.00028219,2]
[313210942,1706953842200,-500.0,0.00028219,2]
[313210943,1706953842208,-60.10834893,0.00028219,2]
[313210944,1706953842324,-717.4770118,0.00027097,2]
[313210945,1706953842333,-403.35909898,0.00027157,3]
[313210968,1706953846016,-8668.59935887,0.00024128,2]
[313210970,1706953846026,-155.02170304,0.00025108,4]
[313210971,1706953846036,-1300.69343361,0.00027157,3]
[313210972,1706953846047,-4772.51746741,0.00027157,3]
[313210973,1706953846057,-500.0,0.00027999,2]
[313210974,1706953846066,-267.93621117,0.00027999,2]
[313210975,1706953846076,-439.89165107,0.00028219,2]
[313210976,1706953846086,-574.18868617,0.00028219,2]
[313210977,1706953846096,-151.0,0.00028219,2]
[313210978,1706953846105,-500.0,0.00028219,2]
[313210979,1706953846115,-500.0,0.00028219,2]
[313210980,1706953846125,-2159.70955885,0.00028219,2]
[313210981,1706953846138,-1207.50044115,0.00028219,2]
[313210982,1706953846148,-500.0,0.00028219,2]
[313210983,1706953846157,-731.54,0.00028219,2]
[313210984,1706953846169,-500.0,0.00028219,2]
[313210985,1706953846179,-509.96,0.00028219,2]
[313210986,1706953846188,-750.21,0.00028219,2]
[313210987,1706953846198,-500.0,0.00028219,2]
[313210988,1706953846207,-500.0,0.00028219,2]
[313210989,1706953846217,-151.0,0.00028219,2]
[313210990,1706953846226,-500.0,0.00028219,2]
[313210991,1706953846236,-500.0,0.00028219,2]
[313210992,1706953846245,-660.67,0.00028219,2]
[313210993,1706953846255,-500.0,0.00028219,2]
[313210994,1706953846264,-1243.64,0.00028219,2]
[313210995,1706953846273,-500.0,0.00028219,2]
[313210996,1706953846283,-500.0,0.00028219,2]
[313210997,1706953846292,-500.0,0.00028219,2]
[313210998,1706953846302,-500.0,0.00028219,2]
[313210999,1706953846311,-500.0,0.00028219,2]
[313211000,1706953846321,-1334.23,0.00028219,2]
[313211001,1706953846330,-500.0,0.00028219,2]
[313211002,1706953846342,-500.0,0.00028219,2]
[313211003,1706953846352,-1748.92,0.00028219,2]
[313211004,1706953846362,-500.0,0.00028219,2]
[313211005,1706953846372,-500.0,0.00028219,2]
[313211006,1706953846383,-1706.69,0.00028219,2]
[313211007,1706953846392,-1146.42508571,0.00028298,2]
[313211008,1706953846402,-175.0,0.00028298,2]
[313211009,1706953846413,-62.69695759,0.00028298,2]
[313211010,1706953846426,-112.30304241,0.00028298,2]
[313211011,1706953846436,-500.0,0.00028493,2]
[313211012,1706953846446,-500.0,0.00028493,2]
[313211013,1706953846455,-267.78809075,0.00028493,2]
[313211014,1706953846465,-500.0,0.00028493,2]
[313211015,1706953846475,-500.0,0.00028493,2]
[313211016,1706953846484,-500.0,0.00028493,2]
[313211017,1706953846493,-3367.21,0.00028493,2]
[313211018,1706953846503,-731.54,0.00028493,2]
[313211019,1706953846512,-500.0,0.00028493,2]
[313211020,1706953846521,-509.96,0.00028493,2]
[313211021,1706953846531,-750.21,0.00028493,2]
[313211022,1706953846541,-280.57,0.00028493,2]
[313211023,1706953846550,-500.0,0.00028493,2]
[313211024,1706953846560,-59.75333495,0.00028493,2]
[313211029,1706954048385,6120.86422835,0.000125,2]
[313211034,1706954192625,151.01963255,0.00028882,30]
[313211037,1706954294582,2390.11,0.0003,120]
[313211081,1706955032213,-155.02015262,0.00020811,2]
[313211082,1706955032222,-1858.30574077,0.00020811,2]
[313211083,1706955032231,-717.4770118,0.00020812,2]
[313211084,1706955032241,-680.25587459,0.00020813,2]
[313211085,1706955032250,-615.23031579,0.00020813,2]
[313211086,1706955032261,-5233.2380795,0.00020813,2]
[313211087,1706955032270,-651.45454176,0.00020814,2]
[313211088,1706955032279,-24900.0,0.00020816,2]
[313211089,1706955032288,-2864.08,0.0002104,15]
[313211090,1706955032297,-230.576275,0.00021076,2]
[313211091,1706955032306,-166.751299,0.00021918,2]
[313211092,1706955032314,-170.110659,0.00022798,2]
[313211093,1706955032324,-200.0,0.00023106,7]
[313211094,1706955032332,-166.751299,0.000232,2]
[313211095,1706955032342,-4035.82532571,0.00024,2]
[313211096,1706955032350,-3943.10867876,0.00024128,2]
[313211097,1706955032359,-166.751299,0.00024482,2]
[313211098,1706955032369,-2586.13340888,0.00024942,2]
[313211099,1706955032378,-5350.04897518,0.00024942,2]
[313211100,1706955032386,-1848.09638043,0.00024942,2]
[313211101,1706955032395,-335.29979556,0.00025,2]
[313211102,1706955032404,-1623.17119921,0.00025398,2]
[313211103,1706955032413,-608.02615365,0.00025398,2]
[313211104,1706955032422,-225.76293109,0.00025398,2]
[313211105,1706955032431,-280.0,0.00025416,7]
[313211106,1706955032440,-200.0,0.00025479,2]
[313211107,1706955032449,-1292.75017331,0.00025768,2]
[313211108,1706955032458,-1629.89225241,0.000259,2]
[313211109,1706955032468,-155.02170304,0.00026098,4]
[313211110,1706955032477,-153.0,0.00026849,2]
[313211111,1706955032487,-500.0,0.00027156,2]
[313211112,1706955032496,-3353.0,0.00027365,3]
[313211113,1706955032505,-4828.31,0.00027375,3]
[313211114,1706955032515,-4023.59,0.00027375,3]
[313211115,1706955032525,-5793.97,0.00027385,3]
[313211116,1706955032534,-379.00530314,0.00027395,7]
[313211117,1706955032544,-2601.64153275,0.00027395,2]
[313211118,1706955032553,-9621.48391638,0.00027395,2]
[313211119,1706955032563,-426.45204754,0.00027395,2]
[313211120,1706955032573,-155.20961041,0.00027395,2]
[313211121,1706955032583,-200.0,0.00027395,2]
[313211122,1706955032593,-155.35403325,0.00027395,2]
[313211123,1706955032603,-243.48263359,0.00027395,2]
[313211124,1706955032613,-3889.47108322,0.00027396,2]
[313211125,1706955032624,-500.0,0.00027397,2]
[313211126,1706955032740,-500.0,0.00027397,2]
[313211127,1706955032750,-372.95353061,0.00027397,2]
[313211128,1706955032760,-500.0,0.00027397,2]
[313211129,1706955032770,-500.0,0.00027397,2]
[313211130,1706955032780,-500.0,0.00027397,2]
[313211131,1706955032790,-301.93124772,0.00027397,2]
[313211132,1706955032801,-500.0,0.00027397,2]
[313211133,1706955032810,-500.0,0.00027397,2]
[313211134,1706955032820,-500.0,0.00027397,2]
[313211135,1706955032829,-3581.47,0.00027397,2]
[313211136,1706955032839,-500.0,0.00027397,2]
[313211137,1706955032848,-500.0,0.00027397,2]
[313211138,1706955032858,-500.0,0.00027397,2]
[313211139,1706955032869,-500.0,0.00027397,2]
[313211140,1706955032878,-278.60824485,0.00027397,2]
[313211141,1706955032888,-320.28093465,0.00027397,2]
[313211142,1706955032897,-500.0,0.00027397,2]
[313211143,1706955032907,-505.47567208,0.00027397,2]
[313211144,1706955032916,-503.37405009,0.00027397,2]
[313211145,1706955032925,-500.0,0.00027397,2]
[313211146,1706955032935,-500.0,0.00027397,2]
[313211147,1706955032945,-500.0,0.00027397,2]
[313211148,1706955032955,-530.44382497,0.00027397,2]
[313211149,1706955032964,-500.0,0.00027397,2]
[313211150,1706955032973,-500.0,0.00027397,2]
[313211151,1706955032983,-500.0,0.00027397,2]
[313211152,1706955032994,-500.0,0.00027397,2]
[313211153,1706955033005,-500.0,0.00027397,2]
[313211154,1706955033015,-500.0,0.00027397,2]
[313211155,1706955033025,-500.0,0.00027397,2]
[313211156,1706955033034,-52.69410233,0.00027397,2]
[313211166,1706955038315,-8611.92076512,0.00024942,2]
[313211167,1706955038325,-447.30589767,0.00027397,2]
[313211168,1706955038335,-500.0,0.00027397,2]
[313211169,1706955038344,-500.0,0.00027397,2]
[313211170,1706955038354,-709.98,0.00027397,2]
[313211171,1706955038363,-3081.4,0.00027397,2]
[313211172,1706955038372,-500.0,0.00027397,2]
[313211173,1706955038381,-500.0,0.00027397,2]
[313211174,1706955038390,-500.0,0.00027397,2]
[313211175,1706955038399,-500.0,0.00027397,2]
[313211176,1706955038408,-500.0,0.00027397,2]
[313211177,1706955038417,-656.43,0.00027397,2]
[313211178,1706955038428,-500.0,0.00027397,2]
[313211179,1706955038440,-500.0,0.00027397,2]
[313211180,1706955038451,-500.0,0.00027397,2]
[313211181,1706955038463,-500.0,0.00027397,2]
[313211182,1706955038475,-500.0,0.00027397,2]
[313211183,1706955038487,-500.0,0.00027397,2]
[313211184,1706955038499,-500.0,0.00027397,2]
[313211185,1706955038509,-500.0,0.00027397,2]
[313211186,1706955038519,-633.14,0.00027397,2]
[313211187,1706955038530,-500.0,0.00027397,2]
[313211188,1706955038542,-1212.65,0.00027397,2]
[313211189,1706955038553,-500.0,0.00027397,2]
[313211190,1706955038564,-500.0,0.00027397,2]
[313211191,1706955038576,-500.0,0.00027397,2]
[313211192,1706955038587,-500.0,0.00027397,2]
[313211193,1706955038598,-500.0,0.00027397,2]
[313211194,1706955038609,-503.49271453,0.00027397,2]
[313211195,1706955038620,-500.0,0.00027397,2]
[313211196,1706955038630,-500.49854135,0.00027397,2]
[313211197,1706955038641,-500.0,0.00027397,2]
[313211198,1706955038651,-1278.64,0.00027397,2]
[313211199,1706955038663,-500.0,0.00027397,2]
[313211200,1706955038673,-500.0,0.00027397,2]
[313211201,1706955038683,-500.0,0.00027397,2]
[313211202,1706955038694,-500.0,0.00027397,2]
[313211203,1706955038704,-506.75800662,0.00027397,2]
[313211204,1706955038716,-500.0,0.00027397,2]
[313211205,1706955038728,-500.0,0.00027397,2]
[313211206,1706955038738,-502.36653154,0.00027397,2]
[313211207,1706955038749,-1676.04,0.00027397,2]
[313211208,1706955038760,-500.0,0.00027397,2]
[313211209,1706955038770,-500.0,0.00027397,2]
[313211210,1706955038781,-566.20643308,0.00027397,2]
[313211211,1706955038792,-500.0,0.00027397,2]
[313211212,1706955038803,-500.0,0.00027397,2]
[313211213,1706955038814,-500.0,0.00027397,2]
[313211214,1706955038826,-500.0,0.00027397,2]
[313211215,1706955038838,-3503.35,0.00027397,2]
[313211216,1706955038849,-670.51356242,0.00027617,2]
[313211217,1706955038859,-500.0,0.0002767,2]
[313211218,1706955038868,-218.34543127,0.0002767,2]
[313211219,1706955038879,-500.0,0.0002767,2]
[313211220,1706955038892,-500.0,0.0002767,2]
[313211221,1706955038904,-500.0,0.0002767,2]
[313211222,1706955038915,-500.0,0.0002767,2]
[313211223,1706955038925,-500.0,0.0002767,2]
[313211224,1706955038935,-500.0,0.0002767,2]
[313211225,1706955038947,-500.0,0.0002767,2]
[313211226,1706955038957,-500.0,0.0002767,2]
[313211227,1706955038967,-500.0,0.0002767,2]
[313211228,1706955038978,-500.0,0.0002767,2]
[313211229,1706955038988,-500.0,0.0002767,2]
[313211230,1706955038999,-500.0,0.0002767,2]
[313211231,1706955039009,-500.0,0.0002767,2]
[313211232,1706955039022,-500.0,0.0002767,2]
[313211233,1706955039033,-500.0,0.0002767,2]
[313211234,1706955039044,-500.0,0.0002767,2]
[313211235,1706955039055,-500.0,0.0002767,2]
[313211236,1706955039066,-600.0,0.0002767,2]
[313211237,1706955039077,-500.0,0.0002767,2]
[313211238,1706955039087,-500.0,0.0002767,2]
[313211239,1706955039098,-500.0,0.0002767,2]
[313211240,1706955039109,-500.0,0.0002767,2]
[313211241,1706955039119,-500.0,0.0002767,2]
[313211242,1706955039131,-565.39070937,0.0002767,2]
[313211243,1706955039142,-500.0,0.0002767,2]
[313211244,1706955039153,-500.0,0.0002767,2]
[313211245,1706955039163,-500.0,0.0002767,2]
[313211246,1706955039173,-500.0,0.0002767,2]
[313211247,1706955039184,-500.0,0.0002767,2]
[313211248,1706955039193,-500.0,0.0002767,2]
[313211249,1706955039203,-500.0,0.0002767,2]
[313211250,1706955039214,-500.0,0.0002767,2]
[313211251,1706955039224,-209.08010662,0.0002767,2]
[313211252,1706955039235,-500.0,0.0002767,2]
[313211253,1706955039245,-500.0,0.0002767,2]
[313211254,1706955039257,-500.0,0.0002767,2]
[313211255,1706955039267,-500.0,0.0002767,2]
[313211256,1706955039278,-500.0,0.0002767,2]
[313211257,1706955039288,-500.0,0.0002767,2]
[313211258,1706955039299,-500.0,0.0002767,2]
[313211259,1706955039311,-500.0,0.0002767,2]
[313211260,1706955039321,-500.0,0.0002767,2]
[313211261,1706955039331,-500.0,0.0002767,2]
[313211262,1706955039340,-500.0,0.0002767,2]
[313211263,1706955039350,-500.0,0.0002767,2]
[313211264,1706955039360,-500.0,0.0002767,2]
[313211265,1706955039370,-460.0,0.0002767,2]
[313211266,1706955039380,-500.0,0.00027671,2]
[313211267,1706955039391,-500.0,0.00027671,2]
[313211268,1706955039401,-500.0,0.00027671,2]
[313211269,1706955039411,-500.0,0.00027671,2]
[313211270,1706955039420,-500.0,0.00027671,2]
[313211271,1706955039431,-500.0,0.00027671,2]
[313211272,1706955039440,-296.04419371,0.00027671,2]
[313211273,1706955039450,-500.0,0.00027671,2]
[313211274,1706955039461,-500.0,0.00027671,2]
[313211275,1706955039471,-500.0,0.00027671,2]
[313211276,1706955039482,-500.0,0.00027671,2]
[313211277,1706955039493,-299.73002939,0.00027671,2]
[313211278,1706955039504,-500.0,0.00027671,2]
[313211279,1706955039514,-500.0,0.00027671,2]
[313211280,1706955039524,-500.0,0.00027671,2]
[313211281,1706955039535,-500.0,0.00027671,2]
[313211282,1706955039546,-500.0,0.00027671,2]
[313211283,1706955039556,-500.0,0.00027671,2]
[313211284,1706955039566,-500.0,0.00027671,2]
[313211285,1706955039577,-500.0,0.00027671,2]
[313211286,1706955039587,-709.98,0.00027671,2]
[313211287,1706955039598,-3081.4,0.00027671,2]
[313211288,1706955039608,-500.0,0.00027671,2]
[313211289,1706955039618,-500.0,0.00027671,2]
[313211290,1706955039628,-500.0,0.00027671,2]
[313211292,1706955039638,-500.0,0.00027671,2]
[313211293,1706955039648,-500.0,0.00027671,2]
[313211294,1706955039659,-656.43,0.00027671,2]
[313211295,1706955039667,-500.0,0.00027671,2]
[313211296,1706955039674,-500.0,0.00027671,2]
[313211299,1706955039784,-500.0,0.00027671,2]
[313211300,1706955039796,-500.0,0.00027671,2]
[313211301,1706955039809,-500.0,0.00027671,2]
[313211302,1706955039819,-500.0,0.00027671,2]
[313211303,1706955039829,-633.14,0.00027671,2]
[313211304,1706955039838,-1212.65,0.00027671,2]
[313211305,1706955039847,-500.0,0.00027671,2]
[313211306,1706955039856,-500.0,0.00027671,2]
[313211307,1706955039866,-500.0,0.00027671,2]
[313211308,1706955039875,-500.0,0.00027671,2]
[313211309,1706955039884,-500.0,0.00027671,2]
[313211310,1706955039894,-500.0,0.00027671,2]
[313211311,1706955039903,-1278.64,0.00027671,2]
[313211312,1706955039913,-500.0,0.00027671,2]
[313211313,1706955039922,-500.0,0.00027671,2]
[313211314,1706955039933,-500.0,0.00027671,2]
[313211315,1706955039942,-500.0,0.00027671,2]
[313211316,1706955039950,-500.0,0.00027671,2]
[313211317,1706955039959,-500.0,0.00027671,2]
[313211318,1706955039968,-1676.04,0.00027671,2]